bitfinex/quotes_ETHUSD_20240810
["timestamp","ask_amount","ask_price","bid_price","bid_amount"]
[1723267149409,3.97,2603.9,2603.1,2.4749]
[1723267149615,3.97,2603.9,2603.5,3.84089]
[1723267150186,3.97,2603.9,2603.6,3.8408]
[1723267151218,3.97,2603.9,2603.6,7.6816]
[1723267151519,3.97,2603.9,2603.5,3.84095]
[1723267151674,3.97,2603.9,2603.4,3.84104]
[1723267151878,3.97,2603.9,2603.4,7.68208]
[1723267152485,3.97,2603.9,2603.6,3.84082]
[1723267153219,3.97,2603.9,2603.4,3.84104]
[1723267153510,3.97,2603.9,2603.2,4.39129]
[1723267153511,11.04066518,2603.9,2603.2,4.39129]
[1723267153742,11.04066518,2603.9,2603.2,4.39134]
[1723267153943,11.04066518,2603.9,2603.4,3.84104]
[1723267155342,14.88113518,2603.9,2603.4,3.84104]
[1723267155525,1.48811352,2603.8,2603.4,3.84104]
[1723267156847,1.48811352,2603.8,2603.2,4.39133]
[1723267157048,4.81119518,2603.9,2603.2,0.55]
[1723267157641,3.84068,2603.8,2603.2,4.3913]
[1723267158730,3.84068,2603.8,2603.2,3.8413]
[1723267158935,0.86518752,2603.7,2603.2,3.8413]
[1723267159515,4.70586752,2603.7,2603.2,3.8413]
[1723267160215,0.86518752,2603.7,2603.3,0.05511825]
[1723267160415,0.86518752,2603.7,2603.3,3.84123]
[1723267160739,3.84065,2603.8,2603.4,0.05511825]
[1723267161167,4.81119518,2603.9,2603.4,3.89622825]
[1723267162293,8.65167518,2603.9,2603.4,3.89622825]
[1723267167687,4.68167518,2603.9,2603.4,3.89622825]
[1723267167874,4.68166518,2603.9,2603.4,0.05511825]
[1723267168192,1.10406652,2603.8,2603.4,0.05511825]
[1723267169013,1.10406652,2603.8,2603.4,3.89619825]
[1723267169257,3.84047,2603.9,2603.4,3.89619825]
[1723267171205,0.60178175,2604.1,2603.7,3.84057]
[1723267171431,7.29,2604.3,2603.7,3.84057]
[1723267171735,7.80958,2604.5,2604.0,3.84022]
[1723267172095,7.80958,2604.5,2604.1,0.05478263]
[1723267172321,3.97,2604.5,2604.1,0.05478263]
[1723267172524,3.97,2604.5,2604.1,3.89486263]
[1723267172801,10.16941,2605.1,2604.4,2.3451]
[1723267173000,14.00814,2605.1,2604.5,3.8395]
[1723267173199,3.83881,2605.0,2604.5,3.8395]
[1723267173505,1.003822,2604.9,2604.6,0.05449874]
[1723267173912,4.842732,2604.9,2604.4,2.3451]
[1723267174112,3.83906,2604.8,2604.4,2.3451]
[1723267174296,3.83906,2604.8,2604.1,7.68006]
[1723267174297,3.83906,2604.8,2604.2,3.83989]
[1723267174499,7.67823,2604.8,2604.5,0.05402574]
[1723267174700,7.67823,2604.8,2604.2,3.83989]
[1723267175213,7.67823,2604.8,2604.3,0.05399135]
[1723267175420,3.83906,2604.8,2604.3,0.05399135]
[1723267175625,3.83906,2604.8,2604.2,3.83989]
[1723267175811,3.83906,2604.8,2604.4,0.05399135]
[1723267176110,4.7072332,2604.8,2604.5,0.05399135]
[1723267176318,4.7072332,2604.8,2604.2,3.83989]
[1723267176517,4.7072332,2604.8,2604.3,0.05399135]
[1723267176806,4.7072332,2604.8,2604.2,3.83989]
[1723267177018,4.7072332,2604.8,2604.4,0.05399135]
[1723267177218,4.7072332,2604.8,2604.2,3.83989]
[1723267177444,4.7072332,2604.8,2604.5,0.05399135]
[1723267177749,0.57110552,2604.7,2604.6,0.05399135]
[1723267177918,3.83906,2604.8,2604.2,3.83989]
[1723267178323,3.83906,2604.8,2604.3,0.05399135]
[1723267178641,3.83906,2604.8,2604.2,3.83989]
[1723267178830,4.7072322,2604.8,2604.4,0.05399135]
[1723267179026,4.7072322,2604.8,2604.3,3.83979]
[1723267179235,4.7072322,2604.8,2604.5,0.05399135]
[1723267179412,4.7072322,2604.8,2604.3,3.83979]
[1723267179610,4.7072322,2604.8,2604.6,0.05313122]
[1723267179835,4.7072322,2604.8,2604.3,3.83979]
[1723267180022,4.7072322,2604.8,2604.7,0.05313122]
[1723267180336,1.003822,2604.9,2604.7,0.05313122]
[1723267180547,0.60155175,2605.3,2604.8,3.83898]
[1723267180719,10.13016,2605.4,2604.6,6.29973]
[1723267180920,7.80826,2605.4,2604.9,0.0531914]
[1723267181148,7.80826,2605.4,2604.9,3.8389]
[1723267181366,7.80826,2605.4,2605.0,0.05304524]
[1723267181738,3.97,2605.4,2605.0,0.05304524]
[1723267182238,7.80826,2605.4,2605.0,0.05304524]
[1723267182420,3.83856,2605.2,2605.0,0.05304524]
[1723267182620,3.83856,2605.2,2604.7,0.55]
[1723267182823,3.83856,2605.2,2605.1,0.05304524]
[1723267183066,3.83856,2605.2,2604.7,4.38921]
[1723267183239,3.83856,2605.2,2605.1,0.05304524]
[1723267183434,3.83856,2605.2,2604.7,4.38921]
[1723267183682,3.83856,2605.2,2605.1,0.05304524]
[1723267183851,3.83856,2605.2,2604.7,4.38921]
[1723267184349,3.83856,2605.2,2604.8,0.05304524]
[1723267184544,3.83856,2605.2,2604.7,4.38921]
[1723267184747,3.83856,2605.2,2604.8,0.05304524]
[1723267184936,3.83856,2605.2,2604.7,4.38921]
[1723267185278,3.83856,2605.2,2604.8,0.05304524]
[1723267185574,3.83856,2605.2,2604.7,4.38921]
[1723267185775,3.83856,2605.2,2604.8,0.05304524]
[1723267185996,3.83856,2605.2,2604.7,4.38921]
[1723267186138,3.83856,2605.2,2604.9,0.05304524]
[1723267186338,3.83877,2605.0,2604.5,3.83941]
[1723267186539,3.83877,2605.0,2604.6,0.05304524]
[1723267186838,3.83877,2605.0,2604.4,3.83956]
[1723267187071,3.83877,2605.0,2604.7,0.05280454]
[1723267187375,3.83877,2605.0,2604.8,0.05280454]
[1723267187564,3.83877,2605.0,2604.7,2.3999]
[1723267187872,3.83877,2605.0,2604.8,0.05280454]
[1723267188278,3.83877,2605.0,2604.7,2.3999]
[1723267188452,3.83877,2605.0,2604.9,0.05280454]
[1723267188974,3.83877,2605.0,2604.7,2.3999]
[1723267189277,3.83877,2605.0,2604.8,0.05280454]
[1723267189571,3.83877,2605.0,2604.5,6.23931]
[1723267189871,3.83877,2605.0,2604.6,0.05280454]
[1723267191349,3.83901,2604.9,2604.6,0.05280454]
[1723267191551,3.83877,2605.0,2604.6,0.05280454]
[1723267191771,7.67765,2605.0,2604.6,0.05280454]
[1723267192072,7.67763,2605.0,2604.6,0.05280454]
[1723267192572,3.83913,2604.8,2604.6,0.05280454]
[1723267192753,3.83913,2604.8,2604.3,3.83971]
[1723267192959,3.83913,2604.8,2604.4,0.55]
[1723267193158,3.83913,2604.8,2604.4,0.60271856]
[1723267193994,3.83878,2605.0,2604.4,0.60271856]
[1723267194194,3.83878,2605.0,2604.5,3.83948]
[1723267194685,3.83878,2605.0,2604.6,0.05271856]
[1723267197481,7.67765,2605.0,2604.6,0.05271856]
[1723267197794,3.83908,2604.8,2604.6,0.05271856]
[1723267198281,3.83908,2604.8,2604.4,0.55]
[1723267198807,3.83908,2604.8,2604.5,0.05222176]
[1723267199996,3.83894,2604.9,2604.5,0.05222176]
[1723267200369,3.8387,2605.1,2604.6,2.2638]
[1723267200619,3.8384,2605.3,2604.6,2.67887125]
[1723267200772,3.8384,2605.3,2604.8,3.83899]
[1723267200972,3.97,2605.4,2604.9,0.05221316]
[1723267200973,7.80818,2605.4,2604.9,0.05221316]
[1723267201180,5.973026,2605.4,2604.9,0.05221316]
[1723267201473,5.973026,2605.4,2604.9,3.89109316]
[1723267201703,2.134846,2605.4,2604.9,0.05221316]
[1723267201898,7.67656,2605.4,2604.9,0.05221316]
[1723267202099,3.83826,2605.4,2604.9,0.05221316]
[1723267202292,3.83826,2605.4,2604.9,3.89105316]
[1723267203173,3.83826,2605.4,2604.9,0.05221316]
[1723267203381,3.83826,2605.4,2604.9,3.89105316]
[1723267203705,3.83804,2605.5,2605.0,3.83874]
[1723267203877,5.589066,2605.5,2605.0,3.83874]
[1723267204076,3.8382,2605.4,2605.1,0.05229913]
[1723267204476,3.8382,2605.4,2604.8,3.83895]
[1723267204722,3.8382,2605.4,2604.9,3.83883]
[1723267204878,1.751026,2605.5,2605.0,3.83876]
[1723267205380,5.589066,2605.5,2605.1,0.05229913]
[1723267205580,1.751026,2605.5,2605.1,3.89081913]
[1723267205781,3.83796,2605.6,2605.1,3.89081913]
[1723267206013,3.83796,2605.6,2605.1,7.72935913]
[1723267206381,3.97,2605.7,2605.2,3.83845]
[1723267206678,7.80775,2605.7,2605.1,3.83852]
[1723267206885,7.80775,2605.7,2605.3,0.05229913]
[1723267207169,9.949993,2605.7,2605.4,0.05229913]
[1723267207374,7.80775,2605.7,2605.1,7.67706]
[1723267207668,7.80775,2605.7,2605.2,0.05229913]
[1723267208370,3.83768,2605.8,2605.3,2.2848]
[1723267208681,11.12745,2605.9,2605.4,3.83817]
[1723267209035,11.12745,2605.9,2605.3,6.74056191]
[1723267209240,3.83775,2605.7,2605.3,2.2848]
[1723267209532,3.83803,2605.5,2605.4,0.05186078]
[1723267209733,3.83827,2605.4,2604.9,2.2848]
[1723267209960,3.83827,2605.4,2605.0,0.05177485]
[1723267210544,3.83834,2605.3,2605.0,0.05177485]
[1723267212234,3.83827,2605.4,2605.0,0.05177485]
[1723267212981,3.83797,2605.6,2605.0,3.89053485]
[1723267214236,3.97,2605.7,2605.1,3.83849]
[1723267214459,3.83766,2605.8,2605.3,3.83831]
[1723267214661,3.83766,2605.8,2605.2,6.17477695]
[1723267214980,3.83766,2605.8,2605.2,2.2848]
[1723267215476,3.83766,2605.8,2605.3,0.05150835]
[1723267215680,7.67561,2605.7,2605.3,0.05150835]
[1723267215977,3.83807,2605.5,2605.0,6.12346]
[1723267216339,3.83807,2605.5,2605.1,0.05147398]
[1723267217364,7.80774,2605.7,2605.2,2.2848]
[1723267217573,11.64561,2605.7,2605.3,0.05149117]
[1723267217746,11.64561,2605.7,2605.2,2.2848]
[1723267218183,3.8379,2605.6,2605.2,2.2848]
[1723267218345,3.8379,2605.6,2605.3,0.05149117]
[1723267218685,3.8379,2605.6,2605.2,2.2848]
[1723267218852,3.83772,2605.8,2605.4,0.05149117]
[1723267219056,3.83776,2605.7,2605.2,6.735491]
[1723267219385,3.83776,2605.7,2605.5,0.05143961]
[1723267219542,7.67559,2605.7,2605.2,6.12315]
[1723267219744,3.83776,2605.7,2605.2,6.12315]
[1723267219982,3.83776,2605.7,2605.3,0.05143961]
[1723267220188,3.83776,2605.7,2605.2,6.12315]
[1723267220488,3.83776,2605.7,2605.3,0.05143961]
[1723267220984,3.83776,2605.7,2605.2,6.12315]
[1723267221158,3.83776,2605.7,2605.3,0.05143961]
[1723267221359,3.83776,2605.7,2605.2,6.12315]
[1723267221555,3.83776,2605.7,2605.3,0.05143961]
[1723267221767,3.83776,2605.7,2605.2,6.12315]
[1723267221768,1.657,2605.4,2605.2,6.12315]
[1723267221989,1.657,2605.4,2605.2,10.957728]
[1723267222146,1.657,2605.4,2605.3,0.05143961]
[1723267222348,1.657,2605.4,2605.0,3.83871]
[1723267222544,1.657,2605.2,2605.1,0.05143961]
[1723267223044,5.49547,2605.2,2605.1,0.05143961]
[1723267223280,6.428854,2605.2,2605.1,0.05143961]
[1723267223490,6.428854,2605.2,2604.6,3.83926]
[1723267223789,1.657,2604.8,2604.6,3.83926]
[1723267223956,1.657,2604.8,2604.7,0.05143961]
[1723267224693,1.657,2604.8,2604.2,3.83985]
[1723267224694,5.49614,2604.8,2604.2,6.09694]
[1723267224897,1.657,2604.3,2604.2,6.09695]
[1723267225319,1.657,2604.3,2604.2,7.090644]
[1723267225815,3.8391,2604.8,2604.2,7.090644]
[1723267226330,3.979,2604.9,2604.4,3.83965]
[1723267227305,7.81793,2604.9,2604.4,3.83965]
[1723267229417,7.81793,2604.9,2604.3,7.67939]
[1723267229619,7.81793,2604.9,2604.3,3.83967]
[1723267229823,7.81793,2604.9,2604.3,7.67939]
[1723267230315,7.81793,2604.9,2604.4,3.83965]
[1723267230518,3.979,2604.9,2604.5,3.8394]
[1723267230693,3.979,2604.9,2604.6,3.83934]
[1723267231015,7.818,2604.9,2604.3,3.8397]
[1723267232376,7.818,2604.9,2604.3,7.67942]
[1723267232795,7.818,2604.9,2604.3,3.8397]
[1723267233242,9.22515,2604.9,2604.3,3.8397]
[1723267233411,5.38615,2604.9,2604.2,2.257]
[1723267233596,3.979,2604.6,2603.8,2.257]
[1723267233797,3.83981,2604.3,2603.8,2.257]
[1723267234937,6.25438,2604.4,2603.8,6.09751]
[1723267235313,6.25435,2604.4,2603.9,0.09935235]
[1723267235713,3.84024,2604.0,2603.9,0.09935235]
[1723267236046,6.3936,2604.0,2603.1,6.09845]
[1723267236242,14.07408,2604.0,2603.9,0.09935235]
[1723267236535,3.84048,2603.9,2603.3,3.84126]
[1723267236740,3.84048,2603.9,2603.3,3.84119]
[1723267236936,15.481598,2604.0,2603.4,0.09702081]
[1723267237097,7.662248,2604.0,2603.4,3.93804081]
[1723267237301,3.979,2603.9,2603.4,3.93804081]
[1723267237805,7.81939,2603.9,2603.4,0.09702081]
[1723267238237,9.3675538,2603.9,2603.4,0.09702081]
[1723267239699,3.84063,2603.8,2603.4,0.09702081]
[1723267240141,3.84063,2603.8,2603.2,3.84141]
[1723267240327,3.84063,2603.8,2603.5,0.09702081]
[1723267240641,3.84063,2603.8,2603.2,3.84141]
[1723267240996,7.68127,2603.8,2603.3,0.09702081]
[1723267241194,3.84077,2603.7,2603.1,6.09843]
[1723267241422,3.84077,2603.7,2603.2,0.64702081]
[1723267242201,1.56227238,2603.8,2603.2,4.48842081]
[1723267242402,7.81939,2603.9,2603.3,3.84118]
[1723267242637,7.81939,2603.9,2603.3,7.68236]
[1723267242934,3.979,2603.9,2603.5,3.84086]
[1723267243295,3.979,2603.9,2603.6,0.09868905]
[1723267243501,3.979,2603.9,2603.7,3.84068]
[1723267243894,3.979,2603.9,2603.8,0.09858578]
[1723267244541,3.83997,2604.2,2603.8,0.09858578]
[1723267244722,11.12988,2604.3,2603.8,0.09858578]
[1723267245042,7.81895,2604.2,2603.9,0.09858578]
[1723267245533,7.81895,2604.2,2603.6,2.493]
[1723267245704,7.81895,2604.2,2604.0,0.09858578]
[1723267245903,3.84009,2604.1,2603.6,2.493]
[1723267247751,5.2472165,2604.2,2603.8,3.84044]
[1723267247752,3.979,2604.2,2603.8,3.84044]
[1723267248119,3.979,2604.2,2603.8,4.857862]
[1723267248331,3.979,2604.2,2603.9,3.84037]
[1723267248514,3.979,2604.2,2603.8,4.857862]
[1723267249160,3.979,2604.2,2603.8,8.698292]
[1723267249349,3.979,2604.2,2603.8,4.857852]
[1723267249513,3.979,2604.2,2603.8,3.84043]
[1723267250233,3.84024,2604.0,2603.9,0.09837928]
[1723267250555,3.84024,2604.0,2603.4,6.33404]
[1723267250754,3.84024,2604.0,2603.9,0.09837928]
[1723267250933,5.249666,2604.0,2603.4,6.33404]
[1723267251262,3.84024,2604.0,2603.4,6.33404]
[1723267251559,3.84024,2604.0,2603.5,0.09836208]
[1723267253457,7.68057,2604.0,2603.5,0.09836208]
[1723267253658,3.84024,2604.0,2603.5,0.09836208]
[1723267253949,7.81903,2604.2,2603.6,3.84079]
[1723267254251,3.84025,2604.0,2603.7,0.09854274]
[1723267254613,3.84025,2604.0,2603.4,6.967393]
[1723267254816,3.84025,2604.0,2603.5,0.09854274]
[1723267255018,3.84042,2603.9,2603.5,0.09854274]
[1723267256659,3.84024,2604.0,2603.5,3.93951274]
[1723267257366,3.84024,2604.0,2603.5,0.09854274]
[1723267259177,7.68057,2604.0,2603.5,0.09854274]
[1723267260004,3.84024,2604.0,2603.5,0.09854274]
[1723267260286,3.84051,2603.9,2603.5,0.09854274]
[1723267260451,7.68059,2604.0,2603.5,0.09854274]
[1723267260653,3.84041,2603.9,2603.5,0.09854274]
[1723267261655,1.659,2603.6,2603.5,0.09854274]
[1723267264593,1.659,2603.6,2603.5,3.93952274]
[1723267264797,1.659,2603.8,2603.5,4.58277601]
[1723267265084,3.83988,2604.3,2603.7,2.4456]
[1723267265303,1.659,2603.9,2603.8,3.84045]
[1723267265474,1.659,2603.9,2603.8,3.93905298]
[1723267265887,7.67889,2604.6,2604.0,3.84014]
[1723267266209,1.659,2604.1,2604.0,6.28574]
[1723267266351,1.659,2604.1,2604.0,6.83574]
[1723267266580,1.659,2604.1,2604.0,7.903351]
[1723267267823,7.29,2604.7,2604.0,4.063211]
[1723267268023,2.3998,2604.9,2604.3,3.8398]
[1723267268024,6.23881,2604.9,2604.3,3.8398]
[1723267268183,1.659,2604.4,2604.3,3.8398]
[1723267268380,1.659,2604.4,2604.3,4.3898]
[1723267269420,1.659,2604.4,2604.3,8.2296]
[1723267269728,11.65673,2605.0,2604.3,8.2296]
[1723267270019,13.062383,2605.0,2604.3,8.2296]
[1723267270825,3.83855,2605.2,2604.4,2.4456]
[1723267270994,3.83871,2605.1,2604.5,4.3894]
[1723267271913,3.83871,2605.1,2604.5,8.22882]
[1723267272285,3.83871,2605.1,2604.5,4.3894]
[1723267272705,3.83871,2605.1,2604.5,8.22882]
[1723267272882,3.83871,2605.1,2604.5,4.3894]
[1723267273082,5.004336,2605.1,2604.5,4.3894]
[1723267273382,2.3998,2604.9,2604.1,2.4456]
[1723267273578,3.83936,2604.6,2604.1,6.28561]
[1723267274599,3.979,2604.7,2604.1,2.4456]
[1723267274929,3.84003,2604.2,2603.7,3.84067]
[1723267275249,3.83982,2604.3,2603.7,3.8406]
[1723267275398,3.83982,2604.3,2603.7,7.68119]
[1723267275601,3.83982,2604.3,2603.7,3.84059]
[1723267275839,3.83982,2604.3,2603.7,7.68119]
[1723267276029,3.83999,2604.2,2603.6,2.4456]
[1723267276200,7.68002,2604.2,2603.7,3.84065]
[1723267276402,3.83999,2604.2,2603.7,3.84065]
[1723267277043,7.68002,2604.2,2603.7,3.84065]
[1723267277839,6.23993,2604.1,2603.4,3.84103]
[1723267278145,3.84047,2603.9,2603.3,6.28679]
[1723267278348,3.84047,2603.9,2603.3,10.12798]
[1723267278506,3.84032,2604.0,2603.4,3.84111]
[1723267278707,3.84032,2604.0,2603.5,3.84096]
[1723267279320,7.68065,2604.0,2603.3,11.056609]
[1723267280354,7.68065,2604.0,2603.4,0.09777727]
[1723267280509,7.68065,2604.0,2603.4,3.93888727]
[1723267281570,5.37293452,2604.0,2603.4,3.93748063]
[1723267281781,5.37293452,2604.0,2603.5,3.84091]
[1723267281948,2.3998,2604.1,2603.6,3.84073]
[1723267282143,2.3998,2604.1,2603.6,4.48846039]
[1723267283070,1.2666952,2604.2,2603.8,3.84053]
[1723267283676,0.90855752,2604.1,2603.9,0.09835821]
[1723267284967,0.90855752,2604.1,2603.7,3.84067]
[1723267285607,0.90855752,2604.1,2603.8,0.09835821]
[1723267286901,0.90855752,2604.1,2603.9,0.09835821]
[1723267287291,0.47485975,2604.0,2603.6,8.23146]
[1723267287514,0.47485975,2604.0,2603.6,4.39071]
[1723267288809,0.47485975,2604.0,2603.6,8.23146]
[1723267288968,0.47485975,2604.0,2603.6,4.39071]
[1723267289173,0.47485975,2604.0,2603.7,0.09835821]
[1723267291411,0.90855752,2604.1,2603.7,0.09835821]
[1723267291605,7.8188,2604.3,2603.8,3.84051]
[1723267291914,11.65868,2604.3,2603.8,3.84051]
[1723267292072,11.65869,2604.3,2603.9,0.09835821]
[1723267292271,11.6587,2604.3,2603.9,0.09835821]
[1723267292471,1.16587,2604.2,2603.9,0.09835821]
[1723267297312,1.16587,2604.2,2603.9,3.93864821]
[1723267297520,3.979,2604.3,2603.9,3.93864821]
[1723267297816,1.659,2604.0,2603.9,0.09835821]
[1723267298882,1.659,2604.0,2603.7,3.84066]
[1723267299083,1.659,2604.0,2603.9,0.09828938]
[1723267299278,1.659,2604.0,2603.7,3.84066]
[1723267299485,1.659,2604.0,2603.9,0.09828938]
[1723267299687,1.659,2604.0,2603.7,3.84066]
[1723267299879,1.659,2604.0,2603.9,0.09828938]
[1723267300126,1.659,2604.0,2603.8,3.93873056]
[1723267300346,1.659,2604.0,2603.8,3.84051]
[1723267300505,1.659,2604.0,2603.9,0.09822056]
[1723267301228,1.659,2604.0,2603.9,7.77900056]
[1723267301400,1.659,2604.1,2604.0,3.84015]
[1723267301602,1.659,2604.3,2604.2,3.83986]
[1723267301926,1.659,2604.3,2604.2,7.77803056]
[1723267302138,1.659,2604.3,2604.2,8.32803056]
[1723267302641,1.659,2604.5,2604.4,3.83963]
[1723267303001,1.659,2604.5,2604.4,3.93779035]
[1723267305742,6.22072,2605.0,2604.4,3.93779035]
[1723267306115,3.83892,2604.9,2604.4,3.93779035]
[1723267306325,4.461152,2604.8,2604.4,0.09816035]
[1723267306640,0.622082,2604.8,2604.4,0.09816035]
[1723267306944,4.461172,2604.8,2604.4,0.09816035]
[1723267307899,0.622082,2604.8,2604.4,3.93781035]
[1723267308155,0.4461012,2604.7,2604.4,3.93781035]
[1723267313509,0.4461012,2604.7,2604.4,0.09816035]
[1723267313672,4.2854012,2604.7,2604.4,0.09816035]
[1723267313999,4.2854012,2604.7,2604.2,0.55]
[1723267314202,4.2854012,2604.7,2604.5,0.09714555]
[1723267314412,4.2854012,2604.7,2604.2,0.55]
[1723267314413,0.49074832,2604.6,2604.2,0.55]
[1723267314710,3.84004,2604.2,2603.7,3.84059]
[1723267314911,3.83987,2604.3,2603.7,3.84059]
[1723267315471,7.81858,2604.5,2603.6,2.3068]
[1723267315472,3.84009,2604.1,2603.6,2.3068]
[1723267315673,3.84048,2603.9,2603.3,3.84117]
[1723267315909,3.84048,2603.9,2603.3,7.68234]
[1723267316316,3.84048,2603.9,2603.3,3.84117]
[1723267316469,0.768064,2603.9,2603.4,3.84104]
[1723267316673,3.84026,2604.0,2603.5,3.84086]
[1723267318098,3.84026,2604.0,2603.3,7.68232]
[1723267318918,3.8404,2603.9,2603.3,7.68232]
[1723267319098,0.38404,2603.8,2603.3,3.84114]
[1723267319299,3.84098,2603.5,2603.1,2.3068]
[1723267319498,3.84113,2603.4,2603.1,2.3068]
[1723267319699,3.84113,2603.4,2602.9,2.2774]
[1723267320024,3.84098,2603.5,2602.9,6.11916]
[1723267320199,7.68206,2603.5,2602.9,6.11916]
[1723267320410,7.68206,2603.5,2602.8,3.84187]
[1723267320411,3.84133,2603.3,2602.8,3.84187]
[1723267320580,3.84165,2603.1,2602.6,3.84222]
[1723267322925,7.82033,2603.3,2602.6,3.84222]
[1723267323223,13.1446686,2603.3,2602.7,3.94184204]
[1723267323420,9.3032686,2603.3,2602.7,3.94184204]
[1723267324031,6.30976,2603.1,2602.7,0.09969204]
[1723267324188,0.630976,2603.0,2602.7,0.09969204]
[1723267324388,6.30976,2603.1,2602.5,3.84234]
[1723267324618,6.30976,2603.1,2602.8,0.09976091]
[1723267324833,6.30976,2603.1,2602.6,3.84225]
[1723267325032,6.30976,2603.1,2602.9,0.09976091]
[1723267325325,6.30976,2603.1,2603.0,0.09976091]
[1723267325536,7.72277,2603.1,2603.0,0.09976091]
[1723267325824,1.41301,2603.1,2602.6,7.68446]
[1723267326002,3.84142,2603.2,2603.0,0.09976091]
[1723267326206,3.84142,2603.2,2602.6,3.84221]
[1723267326391,3.84142,2603.2,2603.1,0.09976091]
[1723267326716,5.254406,2603.2,2603.1,0.09976091]
[1723267326915,5.254406,2603.2,2602.6,3.84221]
[1723267327116,5.254406,2603.2,2603.1,0.09976091]
[1723267327427,5.254406,2603.2,2602.6,3.84221]
[1723267327630,5.254406,2603.2,2603.1,0.09976091]
[1723267327945,3.84107,2603.5,2602.9,3.84177]
[1723267328232,3.84107,2603.5,2603.1,0.09976091]
[1723267328531,3.84114,2603.4,2603.0,0.09980395]
[1723267328691,4.869887,2603.5,2603.2,0.09980395]
[1723267329093,3.84121,2603.4,2603.3,0.09980395]
[1723267329293,3.84121,2603.4,2602.2,6.84284]
[1723267329294,3.84187,2602.9,2602.3,3.84265]
[1723267329631,3.84217,2602.7,2602.4,0.09963178]
[1723267330127,3.84217,2602.7,2602.5,0.09963178]
[1723267330429,3.84219,2602.7,2602.5,0.09963178]
[1723267330633,4.857412,2602.7,2602.2,6.3]
[1723267330830,4.857412,2602.7,2602.6,0.09963178]
[1723267330997,3.84233,2602.6,2602.2,2.4571]
[1723267333336,7.68473,2602.6,2602.2,2.4571]
[1723267333633,3.84233,2602.6,2602.2,2.4571]
[1723267333927,4.7122952,2602.6,2601.9,10.1436]
[1723267334157,3.84246,2602.5,2602.0,0.55]
[1723267334635,3.84246,2602.5,2601.9,6.30033]
[1723267334927,3.84263,2602.4,2601.9,6.30033]
[1723267338168,4.7122952,2602.6,2601.9,6.30033]
[1723267338458,4.7122952,2602.6,2602.0,3.84319]
[1723267338642,8.5546952,2602.6,2602.0,3.84319]
[1723267339749,3.84255,2602.5,2601.9,6.30033]
[1723267340241,5.09593452,2602.5,2601.9,6.30033]
[1723267340561,5.09593452,2602.5,2602.0,0.10104389]
[1723267342659,3.84261,2602.4,2602.0,0.10104389]
[1723267344539,7.68529,2602.4,2602.0,0.10104389]
[1723267344751,3.84261,2602.4,2602.0,0.10104389]
[1723267346271,3.71628452,2602.5,2602.0,0.10104389]
[1723267346482,11.1318,2603.0,2602.5,3.84238]
[1723267346759,3.84201,2602.8,2602.6,0.10114723]
[1723267346987,5.339391,2602.8,2602.6,0.10114723]
[1723267347264,5.339391,2602.8,2602.3,3.84262]
[1723267347442,3.84201,2602.8,2602.3,3.84262]
[1723267347636,3.84201,2602.8,2602.4,0.10105248]
[1723267348037,6.27199,2602.9,2602.4,0.10105248]
[1723267348433,3.8418,2603.0,2602.6,2.3745]
[1723267349200,3.8415,2603.2,2602.7,0.10089746]
[1723267349339,3.8415,2603.2,2602.7,3.94297746]
[1723267349524,5.70871987,2603.2,2602.7,3.84208]
[1723267349725,16.2419187,2603.4,2602.8,3.94280163]
[1723267350025,3.84059,2603.8,2603.3,3.84119]
[1723267350026,7.81961,2603.8,2603.3,3.84119]
[1723267350223,3.84031,2604.0,2603.3,3.84119]
[1723267350427,15.10901,2604.2,2603.6,2.3745]
[1723267350625,3.8401,2604.1,2603.6,2.3745]
[1723267350859,3.8401,2604.1,2603.7,0.10072525]
[1723267351074,5.735011,2604.1,2603.7,0.10072525]
[1723267352378,1.894911,2604.1,2603.7,0.10072525]
[1723267352667,1.894911,2604.1,2603.7,3.94139525]
[1723267352858,11.269,2604.2,2603.8,3.84053]
[1723267353069,11.269,2604.2,2603.8,3.94125525]
[1723267353276,11.269,2604.2,2603.8,0.10072525]
[1723267353576,11.269,2604.2,2603.6,10.05598]
[1723267353789,17.003815,2604.2,2603.9,0.10072525]
[1723267353951,5.873855,2604.2,2603.6,6.21522]
[1723267354294,3.979,2604.2,2604.0,0.10072525]
[1723267354582,3.979,2604.2,2604.1,0.10072525]
[1723267355087,3.979,2604.2,2603.7,3.84062]
[1723267355241,5.144854,2604.2,2604.1,0.10072525]
[1723267355439,5.144854,2604.2,2603.7,3.84062]
[1723267355644,3.979,2604.2,2604.1,0.10072525]
[1723267355952,3.979,2604.2,2604.1,0.09943398]
[1723267356462,3.979,2604.2,2603.7,3.84062]
[1723267356720,3.979,2604.2,2604.1,0.09943398]
[1723267356879,7.81896,2604.2,2603.6,6.21522]
[1723267357388,7.81896,2604.2,2603.7,0.09943398]
[1723267359383,11.65901,2604.2,2603.7,0.09943398]
[1723267359851,7.81896,2604.2,2603.7,0.09943398]
[1723267361794,11.65901,2604.2,2603.7,0.09943398]
[1723267362087,8.984911,2604.2,2603.7,0.09943398]
[1723267362394,3.84054,2603.8,2603.7,0.09943398]
[1723267362692,3.8404,2603.9,2603.7,0.09943398]
[1723267362988,3.8404,2603.9,2603.8,0.09840983]
[1723267363369,3.8404,2603.9,2603.4,3.84109]
[1723267363569,3.8404,2603.9,2603.8,0.09840983]
[1723267363759,3.8404,2603.9,2603.4,3.84109]
[1723267363956,3.8404,2603.9,2603.8,0.09840983]
[1723267364156,3.8404,2603.9,2603.4,3.84109]
[1723267364485,3.8404,2603.9,2603.8,0.09840983]
[1723267364693,3.8404,2603.9,2603.4,3.84109]
[1723267364893,3.8404,2603.9,2603.8,0.09840983]
[1723267365095,3.8404,2603.9,2603.4,3.84109]
[1723267365289,3.8404,2603.9,2603.8,0.09840983]